[Event "39th Muensterland Open 2022"]
[Site "Muenster"]
[Date "2022.10.02"]
[Round "2.10"]
[White "Wallhof, Dieter"]
[Black "Goldschmidt, Christian"]
[Result "0-1"]
[ECO "D40"]
[WhiteElo "1902"]
[BlackElo "2226"]
[Annotator "TA"]
[PlyCount "72"]
[EventDate "2022.10.01"]
[EventType "swiss"]
[EventCountry "GER"]
[SourceTitle "playchess.com"]
[Source "ChessBase"]
[SourceQuality "1"]
[TimeControl "40/5400+30:1800+30"]

{[%evp 18,72,30,13,69,-14,-2,-27,89,0,32,33,35,39,31,0,0,-7,-26,-4,-5,-19,17,0,0,0,0,0,0,0,0,0,0,0,0,0,0,0,0,0,0,-45,0,-54,-38,-48,-61,-102,-93,-91,-95,-113,-115,-234,-39,-29990,-29991]} 1. Nf3 {[%emt 0:00:15]} d5 {[%emt 0:03:23]} 2. c4 {[%emt 0:00:15]} e6 {[%emt 0:00:06]} 3. e3 {[%emt 0:00:20]} c5 {[%emt 0:01:28]} 4. d4 {[%emt 0:00:59]} Nf6 {[%emt 0:00:33]} 5. Nc3 {[%emt 0:00:52]} a6 {[%emt 0:00:16]} 6. dxc5 {[%emt 0:04:09]} Bxc5 {[%emt 0:00:07]} 7. a3 {[%emt 0:02:01]} O-O {[%emt 0:01:50]} 8. b4 {[%emt 0:02:43]} Ba7 {[%emt 0:02:04]} 9. Bb2 {[%emt 0:07:06]} Nc6 {[%emt 0:00:55]} 10. Qc2 {[%emt 0:06:52]} Qc7 {[%emt 0:13:20] [#] D40: Queen's Gambit Declined: Semi-Tarrasch with 5 e3.} (10... Bd7 $11) 11. cxd5 {[%emt 0:06:42] has lost popularity (11.Rd1).} (11. Nxd5 $1 $14 Nxd5 (11... exd5 12. Bxf6) 12. cxd5 exd5 13. Bd3 (13. Ng5 g6 $11)) 11... exd5 $11 {[%emt 0:00:22]} 12. Ne2 {[%emt 0:15:42]} Ne4 {[%emt 0:11:05] [#]} (12... Bg4 $11) 13. Ned4 $146 {[%emt 0:04:09]} (13. Nf4 $16 Be6 14. Nxe6 fxe6 15. Bd3) ({Predecessor:} 13. Ng3 Qe7 14. Bd3 Re8 15. O-O Bg4 16. Bxe4 dxe4 17. Nd2 Rac8 18. h3 Bd7 19. Qxe4 {1-0 (34) Sbarra,M (2245)-Tramalloni,L (2111) Milan 2011}) 13... Qd6 {[%emt 0:09:09]} 14. Bd3 {[%emt 0:06:47]} Re8 {[%emt 0:03:30]} 15. Nxc6 {[%emt 0:02:12]} bxc6 {[%emt 0:00:32]} 16. Rc1 {[%emt 0:01:25]} Nxf2 {[%emt 0:10:26]} 17. Kxf2 {[%emt 0:04:44]} ({Don't blunder} 17. Bxh7+ $2 Kh8 18. Kxf2 Rxe3 $19) 17... Bxe3+ {[%emt 0:00:30]} 18. Kf1 {[%emt 0:00:05]} Bxc1 {[%emt 0:02:51]} 19. Qxc1 {[%emt 0:01:06]} ({Much worse is} 19. Bxh7+ Kh8 20. Bxc1 a5 $15) 19... f6 {[%emt 0:02:51] Against Qg5} (19... a5 $5 {[%cal Ra5b4]} 20. b5 c5 $11) 20. Bd4 {[%emt 0:02:11]} a5 {[%emt 0:02:28]} 21. Bc5 {[%emt 0:01:01] A strong pair of Bishops.} Qc7 {[%emt 0:00:33]} 22. Qc2 {[%emt 0:00:52]} Ba6 {[%emt 0:00:15]} 23. Bxa6 {[%emt 0:00:26]} Rxa6 {[%emt 0:00:07]} 24. Kf2 {[%emt 0:05:55]} axb4 {[%emt 0:01:35]} 25. Bxb4 {[%emt 0:01:43]} Qf4 {[%emt 0:03:38]} 26. Qd3 {[%emt 0:01:24]} Raa8 {[%emt 0:03:02]} 27. g3 {[%emt 0:00:55]} Qg4 {[%emt 0:02:18]} 28. Rc1 {[%emt 0:01:53]} Re6 {[%emt 0:03:44]} 29. Rc2 {[%emt 0:02:32]} Qh3 {[%emt 0:03:55]} (29... Rae8 $5 {[%cal Re6e3]} 30. Bc5 f5 $15) 30. Re2 {[%emt 0:02:11]} (30. Kg1 $11) 30... Rae8 $15 {[%emt 0:01:35]} 31. Rxe6 {[%emt 0:00:12]} Rxe6 {[%emt 0:00:34]} 32. Qa6 {[%emt 0:02:15]} h5 {[%emt 0:00:43] ...Qf5 is the strong threat.} 33. Qd3 {[%emt 0:01:17] Prevents Qf5.} Re4 {[%emt 0:01:21]} 34. Qc2 {[%emt 0:01:19]} Rc4 {[%emt 0:02:21]} 35. Qg6 {[%emt 0:01:42] [#]} (35. Qd3 $17) 35... Re4 $2 {[%emt 0:00:16] The board is on fire.} ({Black should try} 35... c5 $1 $19 {[%cal Rc5b4]} 36. Qd3 Qe6) 36. Kg1 $2 {[%emt 0:00:52][%mdl 8192]} (36. Bc5 $15) 36... Re2 {[%emt 0:01:39] Weighted Error Value: White=0.46/Black=0.21 (precise)} 0-1

[Event "39th Muensterland Open 2022"]
[Site "Muenster"]
[Date "2022.10.03"]
[Round "3.1"]
[White "Koellner, Ruben Gideon"]
[Black "Mueller, Martin"]
[Result "1-0"]
[ECO "A80"]
[WhiteElo "2401"]
[BlackElo "2130"]
[Annotator "TA"]
[PlyCount "61"]
[EventDate "2022.10.01"]
[EventType "swiss"]
[EventCountry "GER"]
[SourceTitle "playchess.com"]
[Source "ChessBase"]
[SourceQuality "1"]
[TimeControl "40/5400+30:1800+30"]

{[%evp 10,61,77,58,66,66,83,60,72,59,87,96,79,68,78,70,71,38,35,33,88,88,102,83,110,95,102,96,101,92,116,94,120,118,121,114,129,117,153,150,222,213,239,228,330,317,889,879,808,840,1716,1435,2237,2128]} 1. d4 {[%emt 0:00:04]} f5 {[%emt 0:00:07]} 2. Bg5 {[%emt 0:00:22]} g6 {[%emt 0:00:54]} 3. Nc3 {[%emt 0:00:29]} d5 {[%emt 0:00:39]} 4. h4 {[%emt 0:01:04]} Bg7 {[%emt 0:00:57]} 5. e3 {[%emt 0:00:52]} Be6 {[%emt 0:01:49]} 6. Nf3 {[%emt 0:03:20]} Nf6 {[%emt 0:04:07] A80: Dutch Defence: Unusual White second moves.} 7. Bf4 {[%emt 0:07:00][%cal Oh4h5] [#]} Qc8 $146 {[%emt 0:05:23]} ({Predecessor:} 7... c6 8. h5 Nxh5 9. Rxh5 gxh5 10. Ng5 Bg8 11. Qxh5+ Kf8 12. Qh3 e6 13. Qg3 Bf6 14. Bc7 {1-0 (32) Volkov,A (1846)-Steenlandt,A (1698) ICCF email 2019}) 8. Ne5 {[%emt 0:03:22]} (8. h5 {is interesting.} Nxh5 9. Rxh5 gxh5 10. Ng5) 8... Nh5 {[%emt 0:03:12] White is slightly better.} 9. Bh2 {[%emt 0:02:36]} Nd7 {[%emt 0:02:51]} 10. Be2 {[%emt 0:02:18] White has more active pieces. The black rooks are badly placed.} Nhf6 {[%emt 0:01:08]} 11. Nb5 {[%emt 0:00:49] [#] Strongly threatening Nf3.} a6 $1 {[%emt 0:03:20]} 12. Nxd7 {[%emt 0:04:27]} axb5 {[%emt 0:00:47]} 13. Nxf6+ {[%emt 0:02:49]} Bxf6 {[%emt 0:00:07]} 14. Bxb5+ {[%emt 0:01:19][%cal Be2b5,Bb5a4,Ba4c2][%mdl 32]} Kf7 {[%emt 0:08:38]} (14... c6 $14 15. Bd3 Bxh4) 15. Bf4 $16 {[%emt 0:03:16]} c5 {[%emt 0:04:57]} 16. c3 {[%emt 0:01:24]} c4 {[%emt 0:05:25]} 17. Ba4 {[%emt 0:03:57]} Bd7 {[%emt 0:00:35]} 18. Bc2 {[%emt 0:00:19]} Ra6 {[%emt 0:03:03]} 19. Kd2 {[%emt 0:07:01]} Qa8 {[%emt 0:08:58]} 20. a3 {[%emt 0:00:11]} Qe8 {[%emt 0:02:00]} 21. Qf3 {[%emt 0:12:05]} Be6 {[%emt 0:04:24]} 22. Qg3 {[%emt 0:01:16]} Qb5 {[%emt 0:01:39]} 23. Rab1 {[%emt 0:01:33][%cal Ba1b1,Bb1b7,Bb7d7][%mdl 32]} Raa8 {[%emt 0:01:53]} 24. Be5 {[%emt 0:02:52]} Qb6 {[%emt 0:09:25]} (24... Qd7 $16 25. h5 g5) 25. Bxf6 $18 {[%emt 0:13:04]} exf6 {[%emt 0:00:39]} 26. b3 {[%emt 0:00:18][%cal Bb2b3,Bb3c4][%mdl 32] Hoping for bxc4.} Rxa3 {[%emt 0:06:58]} (26... Qc6 {might work better.} 27. bxc4 dxc4) 27. bxc4 {[%emt 0:01:02]} Qa5 {[%emt 0:04:00] [#]} (27... Qc6 28. c5 b5) 28. Rxb7+ {[%emt 0:01:48] White is clearly winning.} Bd7 {[%emt 0:00:19]} 29. e4 {[%emt 0:01:33]} f4 {[%emt 0:00:47]} 30. Qh3 {[%emt 0:00:29]} f5 {[%emt 0:01:24]} 31. Rxd7+ {[%emt 0:00:16] Weighted Error Value: White=0.08 (flawless) /Black=0.31} 1-0

[Event "39th Muensterland Open 2022"]
[Site "Muenster"]
[Date "2022.10.03"]
[Round "3.2"]
[White "Weidemann, Jakob"]
[Black "Pfreundt, Jakob"]
[Result "0-1"]
[ECO "C55"]
[WhiteElo "2084"]
[BlackElo "2401"]
[Annotator "TA"]
[PlyCount "96"]
[EventDate "2022.10.01"]
[EventType "swiss"]
[EventCountry "GER"]
[SourceTitle "playchess.com"]
[Source "ChessBase"]
[SourceQuality "1"]
[TimeControl "40/5400+30:1800+30"]

{[%evp 12,96,32,24,28,31,41,31,33,18,18,16,19,16,20,0,15,-13,0,0,34,0,5,12,18,0,0,-8,0,-13,-4,-14,-11,-8,-10,-14,0,-80,-67,-94,-95,-129,-132,-210,-185,-320,-310,-318,-316,-302,-298,-581,-629,-555,-639,-616,-546,-529,-572,-558,-568,-552,-567,-571,-543,-544,-526,-5173,-4285,-2538,-2538,-2372,-2061,-1868,-1268,-1664,-1598,-29973,-29976,-29976,-29977,-29977,-29977,-29978,-29979,-29976,-29977]} 1. e4 {[%emt 0:00:04]} e5 {[%emt 0:00:24]} 2. Nf3 {[%emt 0:00:12]} Nc6 {[%emt 0:00:27]} 3. Bc4 {[%emt 0:00:15]} Nf6 {[%emt 0:00:48]} 4. d3 {[%emt 0:00:12]} Be7 {[%emt 0:00:29]} 5. O-O {[%emt 0:00:55]} O-O {[%emt 0:00:16]} 6. Re1 {[%emt 0:03:12]} d6 {[%emt 0:00:20]} 7. a4 {[%emt 0:00:10]} a5 {[%emt 0:04:11] C55: Two Knights: 4 d3, 4 d4 exd4 5 e5 and Max Lange Attack.} 8. c3 {[%emt 0:00:50]} Be6 {[%emt 0:00:15]} 9. Na3 {[%emt 0:00:30] [#]} h6 $146 {[%emt 0:24:52] White is slightly better.} ({Predecessor:} 9... Bxc4 10. Nxc4 Qd7 11. Bg5 Kh8 12. d4 exd4 13. cxd4 Ng8 14. Bd2 d5 15. Nce5 Qd6 {1-0 (47) Tissir,M (2366)-Abera,A (2137) Chennai 2022}) 10. h3 {[%emt 0:04:48]} Bxc4 {[%emt 0:03:30]} 11. Nxc4 {[%emt 0:00:11]} Re8 {[%emt 0:00:32]} 12. Ne3 {[%emt 0:06:57]} Bf8 {[%emt 0:03:01]} 13. Nf5 {[%emt 0:00:30]} Ne7 {[%emt 0:09:54]} 14. N3h4 {[%emt 0:03:31]} Nxf5 {[%emt 0:05:46]} 15. Nxf5 {[%emt 0:00:11]} Kh7 {[%emt 0:00:24]} (15... d5 $5 {[%cal Rd5e4]}) 16. Qf3 {[%emt 0:05:31]} g6 {[%emt 0:02:32]} 17. Ne3 {[%emt 0:00:34]} Qe7 {[%emt 0:04:02]} 18. b3 {[%emt 0:13:52]} Bg7 {[%emt 0:01:11]} 19. Ba3 {[%emt 0:09:11]} Qe6 {[%emt 0:01:32]} 20. c4 {[%emt 0:02:55]} Nd7 {[%emt 0:02:48]} 21. b4 {[%emt 0:07:13]} axb4 {[%emt 0:01:12]} 22. Bxb4 {[%emt 0:00:09]} c6 {[%emt 0:00:23]} 23. Reb1 {[%emt 0:04:58]} Ra7 {[%emt 0:01:12]} 24. g4 {[%emt 0:35:39]} (24. a5 $11) 24... Rea8 $17 {[%emt 0:02:01] Black continues to play with concentration.} 25. Qd1 {[%emt 0:00:00]} Bf6 {[%emt 0:01:00]} 26. f3 {[%emt 0:00:00]} Bd8 {[%emt 0:01:29]} 27. a5 {[%emt 0:00:00]} (27. Kg2 $17 {was worth a try.}) 27... Qf6 {[%emt 0:05:56][%cal Rd8a5]} 28. Kg2 {[%emt 0:00:00]} (28. Nc2 {is a better defense.}) 28... Bxa5 $19 {[%emt 0:01:04]} 29. Bxa5 {[%emt 0:00:00]} Rxa5 {[%emt 0:00:07]} 30. Rxa5 {[%emt 0:00:00]} Rxa5 {[%emt 0:00:06][%cal Ba8a5,Ba5a2,Ba2b2,Bb2b1][%mdl 32]} 31. Rxb7 $2 {[%emt 0:00:00]} (31. Ra1 Rxa1 32. Qxa1) 31... Ra2+ {[%emt 0:00:37]} 32. Nc2 {[%emt 0:00:00]} Nc5 {[%emt 0:00:58][%cal Bd7c5,Bc5e6,Be6f4,Bf4e2][%mdl 32]} 33. Rb1 {[%emt 0:00:00]} Ne6 {[%emt 0:00:51]} 34. Ra1 {[%emt 0:00:00]} Rb2 {[%emt 0:00:28]} 35. Rb1 {[%emt 0:00:00]} Nf4+ {[%emt 0:00:44]} 36. Kg3 {[%emt 0:00:00] [#]} Ne2+ $1 {[%emt 0:04:12][%mdl 512]} 37. Qxe2 {[%emt 0:00:00]} Rxb1 {[%emt 0:00:06][%mdl 4096] Endgame KQR-KQN} 38. Ne3 {[%emt 0:00:51]} h5 {[%emt 0:04:58]} 39. Qa2 {[%emt 0:02:37]} Qf4+ {[%emt 0:01:07]} 40. Kg2 {[%emt 0:00:52]} Re1 {[%emt 0:00:11]} 41. Nf1 {[%emt 0:30:44] [#]} Rxf1 $1 {[%emt 0:35:17][%mdl 512]} 42. Kxf1 {[%emt 0:00:09]} Qxf3+ {[%emt 0:00:04] KQ-KQ} 43. Kg1 {[%emt 0:00:45]} Qg3+ {[%emt 0:00:08]} 44. Qg2 {[%emt 0:00:53]} Qxg2+ {[%emt 0:00:21] Black mates.} 45. Kxg2 {[%emt 0:00:09]} hxg4 {[%emt 0:00:31]} 46. hxg4 {[%emt 0:00:10]} Kh6 {[%emt 0:00:08]} 47. Kh3 {[%emt 0:01:30]} Kg5 {[%emt 0:00:06]} 48. Kg3 {[%emt 0:00:07]} c5 {[%emt 0:00:14] Weighted Error Value: White=0.63/Black=0.05 (flawless)} 0-1

[Event "39th Muensterland Open 2022"]
[Site "Muenster"]
[Date "2022.10.03"]
[Round "3.3"]
[White "Scholz, Christian"]
[Black "Rott, Georg"]
[Result "1-0"]
[ECO "C08"]
[WhiteElo "2338"]
[BlackElo "2064"]
[Annotator "TA"]
[PlyCount "63"]
[EventDate "2022.10.01"]
[EventType "swiss"]
[EventCountry "GER"]
[SourceTitle "playchess.com"]
[Source "ChessBase"]
[SourceQuality "1"]
[TimeControl "40/5400+30:1800+30"]

{[%evp 9,63,14,34,40,41,52,55,37,55,39,48,47,41,53,63,75,73,64,73,66,88,90,92,84,119,119,119,124,118,113,138,138,136,138,129,118,132,135,146,133,392,381,379,247,281,256,675,676,731,729,736,670,783,672,647,595]} 1. e4 {[%emt 0:00:02]} e6 {[%emt 0:00:10]} 2. d4 {[%emt 0:00:05]} d5 {[%emt 0:00:04]} 3. Nd2 {[%emt 0:00:06]} c5 {[%emt 0:00:12]} 4. exd5 {[%emt 0:00:06]} exd5 {[%emt 0:00:07]} 5. Ngf3 {[%emt 0:00:11]} Bd6 {[%emt 0:00:17]} 6. dxc5 {[%emt 0:00:56] C08: French Tarrasch: 3...c5 4 exd5 exd5 sidelines.} Bxc5 {[%emt 0:00:03]} 7. Nb3 {[%emt 0:01:02]} Bd6 {[%emt 0:00:27]} 8. c3 {[%emt 0:06:54] White is slightly better.} Ne7 {[%emt 0:07:54][%cal Bg8e7,Be7g6,Bg6f4][%mdl 32]} 9. Bd3 {[%emt 0:00:52]} O-O {[%emt 0:00:37]} 10. O-O {[%emt 0:00:10]} Nbc6 {[%emt 0:02:04]} 11. Re1 {[%emt 0:03:29] [#]} Ng6 $146 {[%emt 0:06:33]} ({Predecessor:} 11... a6 12. Be3 Ng6 13. Bxg6 hxg6 14. Bc5 Bxc5 15. Nxc5 b6 16. Nb3 Bg4 17. h3 Bxf3 18. Qxf3 {½-½ (40) Emms,J (2484)-Van de Griendt,J (2322) England 2012}) 12. Bg5 {[%emt 0:06:12]} Nce7 {[%emt 0:03:54]} 13. h3 {[%emt 0:07:10]} a6 {[%emt 0:01:58]} 14. Nh4 {[%emt 0:18:49]} Nf4 {[%emt 0:22:35] [#]} 15. Nf5 $1 {[%emt 0:07:39]} Bxf5 {[%emt 0:11:17]} 16. Bxf5 {[%emt 0:00:09][%cal Oe1e7][%mdl 64] Pin} Qc7 {[%emt 0:07:50]} 17. Bxe7 {[%emt 0:05:38]} Bxe7 {[%emt 0:00:11]} 18. g3 {[%emt 0:00:11]} Ng6 {[%emt 0:02:05]} 19. Qxd5 {[%emt 0:05:07]} Bd6 {[%emt 0:00:58]} 20. Rad1 {[%emt 0:06:38]} Rad8 {[%emt 0:00:54][%cal Od6g3]} 21. Bxg6 {[%emt 0:01:34] White is much more active.} hxg6 {[%emt 0:02:22]} 22. Qf3 {[%emt 0:00:07]} Qb6 {[%emt 0:01:37]} 23. Rd5 {[%emt 0:01:52]} Rfe8 {[%emt 0:01:31]} 24. Red1 {[%emt 0:01:07][%cal Be1d1,Bd1d3,Bd3e3][%mdl 32]} Re6 $2 {[%emt 0:02:06][%mdl 8192] This costs Black the game.} (24... Qc7 $16 {was called for.} 25. Qg4 Bf8) 25. Qd3 $18 {[%emt 0:01:37]} Rf6 {[%emt 0:00:45]} 26. Qd4 {[%emt 0:00:16]} Qc7 {[%emt 0:00:22]} 27. Rd3 {[%emt 0:03:35] Hoping for Nd2.} Qc6 $2 {[%emt 0:08:34]} (27... Re6 28. Nc5 Re1+ 29. Kg2 Qc6) 28. Na5 {[%emt 0:01:25] White is clearly winning.} Qc8 {[%emt 0:07:58]} 29. Nc4 {[%emt 0:00:29]} Qxh3 {[%emt 0:00:13]} 30. Rxd6 {[%emt 0:02:22]} Re8 {[%emt 0:00:27][%cal Re8e1] [#]} 31. Rd8 {[%emt 0:00:25]} Rfe6 {[%emt 0:01:10][%cal Re6e1]} 32. Re3 {[%emt 0:00:12] Against Re1+.  Weighted Error Value: White=0.19 (very precise) /Black=0.35} 1-0

[Event "39th Muensterland Open 2022"]
[Site "Muenster"]
[Date "2022.10.03"]
[Round "3.4"]
[White "Ollenberger, Roland"]
[Black "Koellner, Christof"]
[Result "1-0"]
[ECO "C22"]
[WhiteElo "2256"]
[BlackElo "2058"]
[Annotator "NA RC"]
[PlyCount "75"]
[EventDate "2022.10.01"]
[EventType "swiss"]
[EventCountry "GER"]
[SourceTitle "playchess.com"]
[Source "ChessBase"]
[SourceQuality "1"]
[TimeControl "40/5400+30:1800+30"]

1. e4 {[%emt 0:00:04]} e5 {[%emt 0:00:15]} 2. d4 {[%emt 0:04:44]} exd4 {[%emt 0:01:09]} 3. Qxd4 {[%emt 0:00:09]} Nc6 {[%emt 0:00:35]} 4. Qe3 {[%emt 0:00:03]} d6 {[%emt 0:03:03]} 5. Bd2 {[%emt 0:02:18]} Be7 {[%emt 0:00:36]} 6. Nc3 $1 {[%emt 0:00:22]} Nf6 {[%emt 0:01:22]} 7. f3 {[%emt 0:04:17]} (7. O-O-O $14) 7... Be6 {[%emt 0:05:25]} 8. Bb5 {[%emt 0:02:20]} ({White should try} 8. Nge2 $14) 8... O-O {[%emt 0:01:36]} 9. Bxc6 {[%emt 0:02:12]} bxc6 {[%emt 0:00:02]} 10. Nge2 {[%emt 0:00:11]} Nd7 {[%emt 0:10:32]} (10... d5 {feels stronger.}) 11. Nd4 {[%emt 0:19:50]} Ne5 {[%emt 0:01:46]} 12. f4 {[%emt 0:13:38]} Ng4 {[%emt 0:14:24]} 13. Qe2 {[%emt 0:04:14]} Bd7 {[%emt 0:56:15]} 14. O-O-O {[%emt 0:05:10]} Nf6 {[%emt 0:00:00]} 15. Rhg1 {[%emt 0:04:26]} c5 {[%emt 0:00:00]} 16. Nf3 {[%emt 0:01:07]} Bc6 {[%emt 0:00:00]} 17. g4 {[%emt 0:08:52]} Re8 {[%emt 0:00:00]} 18. g5 {[%emt 0:01:54]} Nd7 {[%emt 0:00:00]} 19. h4 {[%emt 0:03:07]} Bf8 {[%emt 0:00:00]} 20. Qd3 {[%emt 0:02:36]} Qb8 {[%emt 0:00:00]} 21. Nd5 {[%emt 0:02:37]} Bxd5 {[%emt 0:00:00]} 22. exd5 {[%emt 0:00:46]} Nb6 {[%emt 0:00:00]} 23. g6 {[%emt 0:02:33]} hxg6 {[%emt 0:00:00] [#]} (23... fxg6 $142 24. c4 Qc8) 24. h5 $1 {[%emt 0:00:40]} c4 $18 {[%emt 0:00:00]} (24... Na4 $2 25. b3 c4 26. Qxc4 $18) 25. Qd4 {[%emt 0:01:13]} Be7 {[%emt 0:00:00]} 26. hxg6 {[%emt 0:05:44]} Bf6 {[%emt 0:00:00]} 27. gxf7+ {[%emt 0:00:14]} Kxf7 {[%emt 0:00:00]} 28. Ng5+ {[%emt 0:00:13]} Kf8 {[%emt 0:00:00]} 29. Nh7+ {[%emt 0:00:12]} Kf7 {[%emt 0:00:00]} 30. Nxf6 {[%emt 0:00:18]} gxf6 {[%emt 0:00:00]} 31. Bc3 {[%emt 0:00:07]} Qd8 {[%emt 0:00:00]} 32. Rh1 {[%emt 0:01:39]} Rh8 {[%emt 0:03:21]} 33. Qe4 {[%emt 0:00:29]} Qe8 {[%emt 0:01:09]} 34. Rh7+ {[%emt 0:00:25]} Rxh7 {[%emt 0:00:35]} 35. Qxh7+ {[%emt 0:00:07]} Kf8 {[%emt 0:00:03]} 36. Qh8+ {[%emt 0:00:44]} Ke7 {[%emt 0:00:40]} 37. Bxf6+ {[%emt 0:00:54]} Kd7 {[%emt 0:00:45]} 38. Qh3+ {[%emt 0:00:15]} 1-0

[Event "39th Muensterland Open 2022"]
[Site "Muenster"]
[Date "2022.10.03"]
[Round "3.5"]
[White "Schroeder, Lennart"]
[Black "Sandkamp, Ralph"]
[Result "0-1"]
[ECO "A49"]
[WhiteElo "2031"]
[BlackElo "2241"]
[Annotator "TA"]
[PlyCount "40"]
[EventDate "2022.10.01"]
[EventType "swiss"]
[EventCountry "GER"]
[SourceTitle "playchess.com"]
[Source "ChessBase"]
[SourceQuality "1"]
[TimeControl "40/5400+30:1800+30"]

{[%evp 16,40,16,4,6,0,6,-8,-35,-43,0,-62,-62,-47,-13,-102,-109,-198,-211,-652,-646,-625,-628,-562,-612,-1287,-673]} 1. Nf3 {[%emt 0:00:03]} Nf6 {[%emt 0:02:17]} 2. g3 {[%emt 0:00:05]} g6 {[%emt 0:00:24]} 3. b3 {[%emt 0:00:12]} Bg7 {[%emt 0:00:33]} 4. Bb2 {[%emt 0:00:06]} O-O {[%emt 0:00:28]} 5. Bg2 {[%emt 0:00:13]} d6 {[%emt 0:01:01][%cal Bd7d6,Bd6d5,Bd5d4][%mdl 32]} 6. d4 {[%emt 0:00:22]} c5 {[%emt 0:01:51]} 7. O-O {[%emt 0:00:51]} cxd4 {[%emt 0:00:48]} 8. Nxd4 {[%emt 0:00:13]} d5 {[%emt 0:00:22]} 9. c4 {[%emt 0:00:26]} e5 {[%emt 0:03:03] A49: 1 d4 Nf6 2 Nf3 g6 3 g3: Anti-King's Indian systems.} 10. Nc2 {[%emt 0:05:19][%cal Rc4d5]} d4 {[%emt 0:01:14]} 11. f4 {[%emt 0:00:53]} Nc6 {[%emt 0:01:41] The position is equal.} 12. fxe5 {[%emt 0:06:48]} Ng4 {[%emt 0:00:32]} 13. Bxc6 {[%emt 0:05:27]} (13. Qd2 $11) 13... bxc6 $15 {[%emt 0:01:16]} 14. Bxd4 {[%emt 0:03:22][%cal Oe5e6] [#]} Qe7 $146 {[%emt 0:10:24]} (14... Nxe5 $5 {[%cal Rc8h3]} 15. Nc3 Bf5 $15) ({Predecessor:} 14... Bf5 15. e4 Be6 16. Qe2 Nxe5 17. Nd2 Qa5 18. Qe3 Bh3 19. b4 Qc7 20. Rfe1 a5 {0-1 (42) Deforel,J (2251)-Leal,D (2337) ICCF email 2007}) 15. Nd2 {[%emt 0:05:32]} (15. e6 $1 $11) 15... Rd8 {[%emt 0:02:13] ...c5 is the strong threat.} 16. Qc1 {[%emt 0:06:18] [#]} (16. c5 $17 {keeps fighting.}) 16... Bh6 $1 $19 {[%emt 0:09:54][%cal Bg7h6,Bh6e3,Be3d4][%mdl 32] Strongly threatening ...Bb7.} 17. Rd1 $2 {[%emt 0:05:38] [#]} (17. e3) 17... Rxd4 $1 {[%emt 0:02:32][%mdl 576] Remove Defender, Deflection, Decoy. Black is clearly winning.} 18. Nxd4 {[%emt 0:00:50]} Be3+ {[%emt 0:00:09]} 19. Kg2 {[%emt 0:00:13]} Bxd4 {[%emt 0:00:12] This bishop pair is nice.} 20. Rb1 {[%emt 0:00:16]} Ne3+ {[%emt 0:00:30] Weighted Error Value: White=1.04/Black=0.05 (flawless)} 0-1